fUST/lending_fUST_20250801
["ID","MTS","AMOUNT","RATE_DAILY","PERIOD"]
[376453487,1753984240551,-1038.54,0.00019178,2]
[376453489,1753984240561,-1347.43,0.00019178,2]
[376453491,1753984240570,-460.0,0.00019178,2]
[376453493,1753984240579,-3527.51,0.00019178,2]
[376453495,1753984240588,-460.0,0.00019178,2]
[376453497,1753984240596,-1034.8,0.00019178,2]
[376453499,1753984240605,-1026.4,0.00019178,2]
[376453501,1753984240614,-528.37,0.00019178,2]
[376453503,1753984240623,-460.0,0.00019178,2]
[376453505,1753984240632,-4429.82,0.00019178,2]
[376453507,1753984240641,-460.0,0.00019178,2]
[376453509,1753984240650,-970.84,0.00019178,2]
[376453511,1753984240659,-771.08450816,0.00019178,2]
[376453513,1753984240672,-256.34549184,0.00019178,2]
[376453515,1753984240682,-471.61997683,0.00019178,2]
[376453517,1753984240691,-287.4366716,0.00019178,2]
[376453520,1753984240702,-172.5633284,0.00019178,2]
[376453522,1753984240712,-460.0,0.00019178,2]
[376453524,1753984240721,-460.0,0.00019178,2]
[376453526,1753984240729,-24.5166756,0.00019178,2]
[376453527,1753984240770,310.70005982,0.00018603,2]
[376453528,1753984240784,-435.4833244,0.00019178,2]
[376453529,1753984240795,-1107.81,0.00019178,2]
[376453530,1753984240806,-460.0,0.00019178,2]
[376453531,1753984240815,-460.0,0.00019178,2]
[376453532,1753984240825,-460.0,0.00019178,2]
[376453533,1753984240835,-8773.53,0.00019178,2]
[376453534,1753984240845,-9420.35,0.00019178,2]
[376453535,1753984240855,-1413.94,0.00019178,2]
[376453536,1753984240864,-983.84,0.00019178,2]
[376453537,1753984240874,-806.57,0.00019178,2]
[376453538,1753984240883,-460.0,0.00019178,2]
[376453539,1753984240893,-460.0,0.00019178,2]
[376453540,1753984240903,-460.0,0.00019178,2]
[376453541,1753984240913,-460.0,0.00019178,2]
[376453542,1753984240923,-460.0,0.00019178,2]
[376453543,1753984240932,-1197.06,0.00019178,2]
[376453544,1753984240942,-1604.61,0.00019178,2]
[376453545,1753984240951,-598.97,0.00019178,2]
[376453546,1753984240960,-751.21,0.00019178,2]
[376453547,1753984240970,-611.98,0.00019178,2]
[376453548,1753984240980,-460.0,0.00019178,2]
[376453549,1753984240989,-460.0,0.00019178,2]
[376453550,1753984240999,-460.0,0.00019178,2]
[376453551,1753984241008,-460.0,0.00019178,2]
[376453552,1753984241017,-472.12077666,0.00019178,2]
[376453553,1753984241026,-488.11,0.00019178,2]
[376453554,1753984241036,-460.0,0.00019178,2]
[376453555,1753984241045,-2316.06,0.00019178,2]
[376453556,1753984241055,-460.0,0.00019178,2]
[376453557,1753984241064,-460.0,0.00019178,2]
[376453558,1753984241074,-460.0,0.00019178,2]
[376453559,1753984241085,-460.0,0.00019178,2]
[376453561,1753984241097,-460.0,0.00019178,2]
[376453563,1753984241107,-460.0,0.00019178,2]
[376453565,1753984241117,-4439.98,0.00019178,2]
[376453567,1753984241126,-460.0,0.00019178,2]
[376453569,1753984241136,-460.0,0.00019178,2]
[376453571,1753984241146,-460.0,0.00019178,2]
[376453573,1753984241156,-460.0,0.00019178,2]
[376453574,1753984241168,-1114.87,0.00019178,2]
[376453575,1753984241179,-722.86,0.00019178,2]
[376453576,1753984241188,-627.05,0.00019178,2]
[376453577,1753984241198,-460.0,0.00019178,2]
[376453578,1753984241208,-460.0,0.00019178,2]
[376453579,1753984241219,-546.71,0.00019178,2]
[376453580,1753984241228,-1335.7,0.00019178,2]
[376453581,1753984241237,-460.0,0.00019178,2]
[376453582,1753984241248,-460.0,0.00019178,2]
[376453583,1753984241257,-460.0,0.00019178,2]
[376453584,1753984241267,-6900.08,0.00019178,2]
[376453585,1753984241276,-460.0,0.00019178,2]
[376453586,1753984241286,-460.0,0.00019178,2]
[376453587,1753984241296,-460.0,0.00019178,2]
[376453588,1753984241306,-500.0,0.00019178,2]
[376453589,1753984241315,-289.067244,0.00019178,2]
[376453590,1753984241324,-666.0,0.00019178,2]
[376453591,1753984241334,-5000.0,0.00019178,2]
[376453593,1753984241344,-4545.21610492,0.00019178,2]
[376453595,1753984241353,-218.45,0.000193,2]
[376453597,1753984241363,-1177.31227924,0.00019352,2]
[376453599,1753984241373,-214.99831783,0.00019396,2]
[376453602,1753984241382,-160.0,0.00019396,2]
[376453604,1753984241395,-160.0,0.00019396,2]
[376453606,1753984241405,-216.18812866,0.00019396,2]
[376453608,1753984241414,-312.16666667,0.00019396,2]
[376453610,1753984241424,-460.682337,0.00019396,2]
[376453612,1753984241433,-231.48161788,0.00019396,2]
[376453614,1753984241443,-160.0,0.00019396,2]
[376453616,1753984241453,-841.37753757,0.00019396,2]
[376453618,1753984241463,-526.848153,0.00019396,2]
[376453620,1753984241473,-160.0,0.00019396,2]
[376453622,1753984241484,-160.0,0.00019396,2]
[376453624,1753984241495,-160.0,0.00019396,2]
[376453626,1753984241504,-12642.0599901,0.00019396,2]
[376453628,1753984241515,-224.278322,0.00019399,2]
[376453630,1753984241524,-578.3876535,0.000194,2]
[376453632,1753984241533,-577.5773364,0.000194,2]
[376453634,1753984241543,-800.0,0.00019442,2]
[376453636,1753984241552,-212.49268694,0.00019451,2]
[376453638,1753984241562,-500.0,0.00019451,2]
[376453640,1753984241571,-500.0,0.00019451,2]
[376453642,1753984241580,-500.0,0.00019451,2]
[376453644,1753984241591,-514.27141317,0.00019451,2]
[376453646,1753984241601,-500.0,0.00019451,2]
[376453648,1753984241611,-500.0,0.00019451,2]
[376453650,1753984241621,-500.0,0.00019451,2]
[376453652,1753984241631,-500.0,0.00019451,2]
[376453654,1753984241640,-500.0,0.00019451,2]
[376453656,1753984241649,-500.0,0.00019451,2]
[376453658,1753984241659,-500.0,0.00019451,2]
[376453660,1753984241668,-500.0,0.00019451,2]
[376453662,1753984241678,-500.0,0.00019451,2]
[376453664,1753984241687,-500.0,0.00019451,2]
[376453666,1753984241696,-500.0,0.00019451,2]
[376453668,1753984241706,-500.0,0.00019451,2]
[376453670,1753984241715,-500.0,0.00019451,2]
[376453672,1753984241724,-500.0,0.00019451,2]
[376453674,1753984241734,-550.0,0.00019451,2]
[376453676,1753984241744,-460.0,0.00019452,2]
[376453678,1753984241754,-460.0,0.00019452,2]
[376453680,1753984241764,-460.0,0.00019452,2]
[376453682,1753984241773,-460.0,0.00019452,2]
[376453684,1753984241782,-460.0,0.00019452,2]
[376453686,1753984241792,-621.45,0.00019452,2]
[376453688,1753984241801,-460.0,0.00019452,2]
[376453689,1753984241810,-460.0,0.00019452,2]
[376453690,1753984241819,-460.0,0.00019452,2]
[376453691,1753984241829,-460.0,0.00019452,2]
[376453692,1753984241838,-460.0,0.00019452,2]
[376453693,1753984241850,-460.0,0.00019452,2]
[376453695,1753984241859,-460.0,0.00019452,2]
[376453697,1753984241868,-460.0,0.00019452,2]
[376453699,1753984241878,-460.0,0.00019452,2]
[376453701,1753984241887,-551.56,0.00019452,2]
[376453703,1753984241897,-460.0,0.00019452,2]
[376453705,1753984241906,-460.0,0.00019452,2]
[376453707,1753984241915,-460.0,0.00019452,2]
[376453709,1753984241925,-460.0,0.00019452,2]
[376453711,1753984241935,-511.40957941,0.00019452,2]
[376453713,1753984241944,-1114.62,0.00019452,2]
[376453715,1753984241954,-752.56,0.00019452,2]
[376453717,1753984241964,-460.0,0.00019452,2]
[376453719,1753984241974,-918.03,0.00019452,2]
[376453721,1753984241984,-634.69,0.00019452,2]
[376453723,1753984241993,-460.0,0.00019452,2]
[376453725,1753984242002,-460.0,0.00019452,2]
[376453727,1753984242011,-460.0,0.00019452,2]
[376453729,1753984242021,-584.91286071,0.00019452,2]
[376453731,1753984242030,-460.0,0.00019452,2]
[376453733,1753984242039,-300.82814962,0.00019452,2]
[376453735,1753984242048,-1349.86,0.00019452,2]
[376453737,1753984242058,-639.05,0.00019452,2]
[376453739,1753984242067,-652.25,0.00019452,2]
[376453741,1753984242076,-460.0,0.00019452,2]
[376453743,1753984242089,-460.0,0.00019452,2]
[376453745,1753984242098,-460.0,0.00019452,2]
[376453747,1753984242108,-500.0,0.00019452,2]
[376453749,1753984242117,-475.0,0.00019452,2]
[376453751,1753984242128,-592.54,0.00019452,2]
[376453753,1753984242138,-460.0,0.00019452,2]
[376453755,1753984242148,-616.31,0.00019452,2]
[376453758,1753984242158,-464.98788061,0.00019452,2]
[376453759,1753984242168,-460.0,0.00019452,2]
[376453761,1753984242178,-851.85,0.00019452,2]
[376453763,1753984242188,-491.86,0.00019452,2]
[376453765,1753984242197,-515.54,0.00019452,2]
[376453767,1753984242206,-315.53544578,0.00019452,2]
[376453772,1753984242235,-149.59809324,0.00019452,2]
[376453774,1753984242245,-466.59901576,0.00019452,2]
[376453776,1753984242254,-460.0,0.00019452,2]
[376453778,1753984242264,-556.32460756,0.00019452,2]
[376453780,1753984242276,-4353.74539244,0.00019452,2]
[376453782,1753984242286,-460.0,0.00019452,2]
[376453784,1753984242295,-460.0,0.00019452,2]
[376453786,1753984242304,-460.0,0.00019452,2]
[376453788,1753984242314,-460.0,0.00019452,2]
[376453790,1753984242323,-460.0,0.00019452,2]
[376453792,1753984242332,-460.0,0.00019452,2]
[376453794,1753984242342,-681.86,0.00019452,2]
[376453796,1753984242352,-770.32,0.00019452,2]
[376453798,1753984242361,-460.0,0.00019452,2]
[376453800,1753984242371,-460.0,0.00019452,2]
[376453802,1753984242381,-460.0,0.00019452,2]
[376453804,1753984242390,-460.0,0.00019452,2]
[376453806,1753984242399,-581.46,0.00019452,2]
[376453808,1753984242408,-460.0,0.00019452,2]
[376453810,1753984242418,-460.0,0.00019452,2]
[376453812,1753984242427,-1042.58,0.00019452,2]
[376453814,1753984242437,-460.0,0.00019452,2]
[376453816,1753984242446,-460.0,0.00019452,2]
[376453818,1753984242456,-460.0,0.00019452,2]
[376453820,1753984242466,-460.0,0.00019452,2]
[376453822,1753984242475,-460.0,0.00019452,2]
[376453824,1753984242485,-539.55744317,0.00019452,2]
[376453826,1753984242494,-460.0,0.00019452,2]
[376453828,1753984242504,-460.0,0.00019452,2]
[376453830,1753984242514,-460.0,0.00019452,2]
[376453832,1753984242523,-460.0,0.00019452,2]
[376453834,1753984242532,-460.0,0.00019452,2]
[376453836,1753984242542,-460.0,0.00019452,2]
[376453838,1753984242551,-591.36,0.00019452,2]
[376453840,1753984242560,-460.0,0.00019452,2]
[376453842,1753984242570,-460.0,0.00019452,2]
[376453844,1753984242580,-460.0,0.00019452,2]
[376453846,1753984242590,-460.0,0.00019452,2]
[376453848,1753984242600,-907.37,0.00019452,2]
[376453850,1753984242610,-489.46540521,0.00019452,2]
[376453852,1753984242619,-271.20448493,0.00019452,2]
[376453854,1753984242629,-850.42,0.00019452,2]
[376453856,1753984242639,-460.0,0.00019452,2]
[376453858,1753984242648,-930.45,0.00019452,2]
[376453861,1753984242658,-3813.28,0.00019452,2]
[376453863,1753984242668,-460.0,0.00019452,2]
[376453865,1753984242676,-3010.94,0.00019452,2]
[376453867,1753984242686,-1031.58,0.00019452,2]
[376453869,1753984242695,-252.94230173,0.00019452,2]
[376453871,1753984242704,-460.0,0.00019452,2]
[376453873,1753984242714,-460.0,0.00019452,2]
[376453875,1753984242723,-566.01159404,0.00019452,2]
[376453877,1753984242732,-460.0,0.00019452,2]
[376453880,1753984242751,-460.0,0.00019452,2]
[376453882,1753984242761,-460.0,0.00019452,2]
[376453884,1753984242772,-460.0,0.00019452,2]
[376453886,1753984242783,-878.82,0.00019452,2]
[376453888,1753984242793,-460.0,0.00019452,2]
[376453891,1753984242803,-1027.05,0.00019452,2]
[376453893,1753984242813,-2219.69,0.00019452,2]
[376453895,1753984242823,-1042.61,0.00019452,2]
[376453897,1753984242833,-2011.67,0.00019452,2]
[376453899,1753984242843,-1181.97,0.00019452,2]
[376453901,1753984242853,-460.0,0.00019452,2]
[376453903,1753984242863,-3324.91,0.00019452,2]
[376453905,1753984242873,-460.0,0.00019452,2]
[376453907,1753984242883,-2686.18,0.00019452,2]
[376453910,1753984242893,-460.0,0.00019452,2]
[376453912,1753984242903,-460.0,0.00019452,2]
[376453914,1753984242913,-460.0,0.00019452,2]
[376453916,1753984242923,-460.0,0.00019452,2]
[376453918,1753984242933,-460.0,0.00019452,2]
[376453920,1753984242943,-460.0,0.00019452,2]
[376453922,1753984242953,-460.0,0.00019452,2]
[376453924,1753984242963,-460.0,0.00019452,2]
[376453926,1753984242972,-460.0,0.00019452,2]
[376453928,1753984242982,-460.0,0.00019452,2]
[376453930,1753984242992,-1286.15,0.00019452,2]
[376453932,1753984243002,-460.0,0.00019452,2]
[376453934,1753984243011,-994.28,0.00019452,2]
[376453937,1753984243021,-4422.62,0.00019452,2]
[376453939,1753984243031,-2641.94190912,0.00019452,2]
[376453941,1753984243045,-337.92930068,0.00019452,2]
[376453944,1753984243056,-540.44922407,0.00019452,2]
[376453946,1753984243068,-338.52956613,0.00019452,2]
[376453948,1753984243078,-36.21043376,0.00019452,2]
[376453950,1753984243093,-626.52956624,0.00019452,2]
[376453952,1753984243103,-460.0,0.00019452,2]
[376453954,1753984243113,-29.79899879,0.00019452,2]
[376453957,1753984243126,-2073.16201026,0.00019452,2]
[376453959,1753984243138,-2646.41899095,0.00019452,2]
[376453961,1753984243148,-460.0,0.00019452,2]
[376453963,1753984243158,-460.0,0.00019452,2]
[376453965,1753984243168,-460.0,0.00019452,2]
[376453967,1753984243179,-1224.13,0.00019452,2]
[376453969,1753984243190,-460.0,0.00019452,2]
[376453971,1753984243200,-460.0,0.00019452,2]
[376453973,1753984243210,-460.0,0.00019452,2]
[376453975,1753984243220,-829.84,0.00019452,2]
[376453977,1753984243230,-460.0,0.00019452,2]
[376453979,1753984243240,-460.0,0.00019452,2]
[376453981,1753984243250,-472.64,0.00019452,2]
[376453983,1753984243259,-460.0,0.00019452,2]
[376453985,1753984243269,-460.0,0.00019452,2]
[376454005,1753984243449,-645.65,0.00019452,2]
[376454007,1753984243459,-460.0,0.00019452,2]
[376454009,1753984243469,-955.48928502,0.00019452,2]
[376454011,1753984243482,-479.93791128,0.00019452,2]
[376454022,1753984243584,-1826.0328037,0.00019452,2]
[376454024,1753984243593,-597.35,0.00019452,2]
[376454026,1753984243603,-1023.88,0.00019452,2]
[376454028,1753984243612,-460.0,0.00019452,2]
[376454030,1753984243621,-460.0,0.00019452,2]
[376454032,1753984243631,-460.0,0.00019452,2]
[376454034,1753984243640,-3427.49,0.00019452,2]
[376454036,1753984243650,-1038.54,0.00019452,2]
[376454038,1753984243659,-846.10861233,0.00019452,2]
[376456235,1753984355217,228.271975,0.00018424,2]
[376456240,1753984445109,382.39569301,0.00018774,2]
[376456241,1753984539782,272.07070054,0.0001843,2]
[376456242,1753984610054,374.241457,0.00013699,2]
[376456244,1753984674402,25424.86740236,0.00026,120]
[376456247,1753984818462,6186.72016341,0.0001805,2]
[376456248,1753984842797,163.24242032,0.0001843,2]
[376456259,1753985139332,1240.82881715,0.0001805,2]
[376456260,1753985141175,2791.86483859,0.0001805,2]
[376456261,1753985143056,4963.3152686,0.0001805,2]
[376456262,1753985144529,7755.18010718,0.0001805,2]
[376456263,1753985155358,1801.99019267,0.0001805,2]
[376456264,1753985157218,4054.47793351,0.0001805,2]
[376456265,1753985158643,7200.75280991,0.0001805,2]
[376456266,1753985165237,24900.0,0.00018104,2]
[376456271,1753985375275,1320.35641736,0.00023,30]
[376456321,1753985432413,-1306.80965267,0.0001888,2]
[376456510,1753985438623,-335.19034733,0.0001888,2]
[376456512,1753985438633,-300.0,0.00019077,2]
[376456513,1753985438643,-114.67349257,0.00019077,2]
[376456515,1753985438655,-1085.32650743,0.00019077,2]
[376456517,1753985438664,-674.8584631,0.00019078,2]
[376456519,1753985438673,-661.41998108,0.00019078,2]
[376456521,1753985438682,-3306.46384755,0.00019078,2]
[376456523,1753985438691,-581.13877224,0.00019167,2]
[376456530,1753985438836,-415.86122776,0.00019167,2]
[376456531,1753985438846,-253.17,0.00019168,3]
[376456532,1753985438855,-759.55,0.00019168,3]
[376456533,1753985438865,-5000.00000099,0.0001917,2]
[376456534,1753985438874,-491.80512213,0.00019173,2]
[376456535,1753985438883,-500.0,0.00019173,2]
[376456536,1753985438893,-500.0,0.00019173,2]
[376456537,1753985438902,-501.1827514,0.00019173,2]
[376456538,1753985438911,-500.0,0.00019173,2]
[376456539,1753985438920,-500.0,0.00019173,2]
[376456540,1753985438929,-500.0,0.00019173,2]
[376456541,1753985438938,-212.49268694,0.00019177,2]
[376456542,1753985438947,-500.0,0.00019177,2]
[376456543,1753985438956,-500.0,0.00019177,2]
[376456544,1753985438965,-500.0,0.00019177,2]
[376456545,1753985438976,-500.0,0.00019177,2]
[376456546,1753985438985,-164.27141317,0.00019177,2]
[376456547,1753985438995,-500.0,0.00019177,2]
[376456548,1753985439004,-500.0,0.00019177,2]
[376456549,1753985439013,-500.0,0.00019177,2]
[376456550,1753985439022,-500.0,0.00019177,2]
[376456551,1753985439031,-500.0,0.00019177,2]
[376456552,1753985439040,-500.0,0.00019177,2]
[376456553,1753985439050,-500.0,0.00019177,2]
[376456554,1753985439059,-500.0,0.00019177,2]
[376456555,1753985439067,-500.0,0.00019177,2]
[376456556,1753985439076,-500.0,0.00019177,2]
[376456557,1753985439085,-500.0,0.00019177,2]
[376456558,1753985439094,-250.0,0.00019177,2]
[376456559,1753985439104,-511.40957941,0.00019178,2]
[376456560,1753985439113,-460.0,0.00019178,2]
[376456561,1753985439122,-460.0,0.00019178,2]
[376456562,1753985439131,-460.0,0.00019178,2]
[376456563,1753985439140,-460.0,0.00019178,2]
[376456564,1753985439150,-460.0,0.00019178,2]
[376456565,1753985439159,-460.0,0.00019178,2]
[376456566,1753985439168,-631.59,0.00019178,2]
[376456567,1753985439180,-644.24,0.00019178,2]
[376456568,1753985439196,-460.0,0.00019178,2]
[376456569,1753985439205,-460.0,0.00019178,2]
[376456570,1753985439214,-460.0,0.00019178,2]
[376456571,1753985439224,-460.0,0.00019178,2]
[376456572,1753985439234,-460.0,0.00019178,2]
[376456573,1753985439243,-531.4958397,0.00019178,2]
[376456574,1753985439253,-460.0,0.00019178,2]
[376456575,1753985439262,-460.0,0.00019178,2]
[376456576,1753985439272,-460.0,0.00019178,2]
[376456577,1753985439281,-461.88344978,0.00019178,2]
[376456578,1753985439292,-461.0682558,0.00019178,2]
[376456579,1753985439302,-460.0,0.00019178,2]
[376456580,1753985439313,-460.0,0.00019178,2]
[376456581,1753985439322,-460.0,0.00019178,2]
[376456582,1753985439332,-472.18291911,0.00019178,2]
[376456583,1753985439341,-460.0,0.00019178,2]
[376456584,1753985439350,-460.0,0.00019178,2]
[376456585,1753985439359,-460.0,0.00019178,2]
[376456586,1753985439369,-460.0,0.00019178,2]
[376456587,1753985439377,-460.0,0.00019178,2]
[376456588,1753985439386,-587.01,0.00019178,2]
[376456589,1753985439396,-460.0,0.00019178,2]
[376456590,1753985439405,-460.58405561,0.00019178,2]
[376456591,1753985439415,-460.0,0.00019178,2]
[376456592,1753985439424,-460.0,0.00019178,2]
[376456593,1753985439433,-460.0,0.00019178,2]
[376456594,1753985439442,-460.0,0.00019178,2]
[376456595,1753985439452,-460.0,0.00019178,2]
[376456596,1753985439461,-460.0,0.00019178,2]
[376456597,1753985439472,-460.0,0.00019178,2]
[376456598,1753985439482,-460.0,0.00019178,2]
[376456599,1753985439492,-460.0,0.00019178,2]
[376456600,1753985439502,-460.0,0.00019178,2]
[376456601,1753985439511,-460.0,0.00019178,2]
[376456602,1753985439521,-460.0,0.00019178,2]
[376456603,1753985439530,-460.0,0.00019178,2]
[376456604,1753985439545,-460.0,0.00019178,2]
[376456605,1753985439555,-460.0,0.00019178,2]
[376456606,1753985439565,-460.0,0.00019178,2]
[376456607,1753985439575,-460.0,0.00019178,2]
[376456608,1753985439584,-460.0,0.00019178,2]
[376456609,1753985439593,-460.0,0.00019178,2]
[376456610,1753985439603,-460.0,0.00019178,2]
[376456611,1753985439613,-460.0,0.00019178,2]
[376456612,1753985439622,-500.0,0.00019178,2]
[376456613,1753985439631,-460.0,0.00019178,2]
[376456614,1753985439640,-460.0,0.00019178,2]
[376456615,1753985439649,-460.0,0.00019178,2]
[376456616,1753985439659,-460.0,0.00019178,2]
[376456617,1753985439668,-770.37,0.00019178,2]
[376456618,1753985439677,-460.0,0.00019178,2]
[376456619,1753985439687,-460.0,0.00019178,2]
[376456620,1753985439697,-460.0,0.00019178,2]
[376456621,1753985439706,-460.0,0.00019178,2]
[376456622,1753985439716,-460.0,0.00019178,2]
[376456623,1753985439732,-460.0,0.00019178,2]
[376456624,1753985439741,-460.0,0.00019178,2]
[376456625,1753985439750,-460.0,0.00019178,2]
[376456626,1753985439759,-460.0,0.00019178,2]
[376456627,1753985439770,-460.0,0.00019178,2]
[376456628,1753985439779,-460.0,0.00019178,2]
[376456629,1753985439790,-460.0,0.00019178,2]
[376456630,1753985439799,-460.0,0.00019178,2]
[376456631,1753985439809,-460.0,0.00019178,2]
[376456632,1753985439818,-460.0,0.00019178,2]
[376456633,1753985439827,-460.0,0.00019178,2]
[376456634,1753985439837,-460.0,0.00019178,2]
[376456635,1753985439846,-460.0,0.00019178,2]
[376456636,1753985439854,-460.0,0.00019178,2]
[376456638,1753985439863,-460.0,0.00019178,2]
[376456639,1753985439872,-460.0,0.00019178,2]
[376456640,1753985439882,-460.0,0.00019178,2]
[376456641,1753985439892,-460.0,0.00019178,2]
[376456643,1753985439901,-460.0,0.00019178,2]
[376456645,1753985439910,-460.0,0.00019178,2]
[376456647,1753985439918,-425.83894147,0.00019178,2]
[376456649,1753985439927,-460.0,0.00019178,2]
[376456651,1753985439936,-460.0,0.00019178,2]
[376456653,1753985439946,-460.0,0.00019178,2]
[376456655,1753985439955,-460.0,0.00019178,2]
[376456657,1753985439964,-460.0,0.00019178,2]
[376456659,1753985439974,-460.0,0.00019178,2]
[376456661,1753985439983,-1354.87,0.00019178,2]
[376456662,1753985439993,-460.0,0.00019178,2]
[376456663,1753985440002,-460.0,0.00019178,2]
[376456664,1753985440012,-460.0,0.00019178,2]
[376456665,1753985440021,-460.0,0.00019178,2]
[376456666,1753985440030,-460.0,0.00019178,2]
[376456667,1753985440039,-460.0,0.00019178,2]
[376456668,1753985440048,-460.0,0.00019178,2]
[376456669,1753985440057,-460.0,0.00019178,2]
[376456670,1753985440067,-460.0,0.00019178,2]
[376456671,1753985440077,-460.0,0.00019178,2]
[376456672,1753985440086,-1087.34,0.00019178,2]
[376456673,1753985440095,-460.0,0.00019178,2]
[376456674,1753985440104,-460.0,0.00019178,2]
[376456676,1753985440113,-460.0,0.00019178,2]
[376456678,1753985440123,-460.0,0.00019178,2]
[376456680,1753985440132,-460.0,0.00019178,2]
[376456681,1753985440142,-460.0,0.00019178,2]
[376456682,1753985440151,-460.0,0.00019178,2]
[376456683,1753985440159,-740.37,0.00019178,2]
[376456684,1753985440170,-460.0,0.00019178,2]
[376456685,1753985440179,-460.0,0.00019178,2]
[376456686,1753985440188,-339.90743187,0.00019178,2]
[376456687,1753985440196,-460.0,0.00019178,2]
[376456688,1753985440205,-460.0,0.00019178,2]
[376456690,1753985440214,-460.0,0.00019178,2]
[376456692,1753985440224,-460.0,0.00019178,2]
[376456694,1753985440233,-918.12,0.00019178,2]
[376456696,1753985440242,-182.28454,0.00019178,2]
[376456698,1753985440251,-460.0,0.00019178,2]
[376456700,1753985440260,-460.0,0.00019178,2]
[376456702,1753985440269,-461.04615974,0.00019178,2]
[376456704,1753985440278,-460.0,0.00019178,2]
[376456706,1753985440287,-460.0,0.00019178,2]
[376456708,1753985440296,-308.16281489,0.00019178,2]
[376456710,1753985440305,-460.0,0.00019178,2]
[376456711,1753985440314,-460.0,0.00019178,2]
[376456712,1753985440324,-646.57,0.00019178,2]
[376456713,1753985440333,-460.0,0.00019178,2]
[376456714,1753985440342,-460.0,0.00019178,2]
[376456715,1753985440351,-460.0,0.00019178,2]
[376456716,1753985440360,-460.0,0.00019178,2]
[376456717,1753985440369,-460.0,0.00019178,2]
[376456719,1753985440378,-466.82,0.00019178,2]
[376456720,1753985440388,-460.0,0.00019178,2]
[376456721,1753985440397,-460.0,0.00019178,2]
[376456722,1753985440405,-460.0,0.00019178,2]
[376456723,1753985440414,-464.48775363,0.00019178,2]
[376456724,1753985440424,-460.0,0.00019178,2]
[376456725,1753985440433,-460.0,0.00019178,2]
[376456726,1753985440445,-460.0,0.00019178,2]
[376456727,1753985440456,-460.0,0.00019178,2]
[376456728,1753985440466,-460.0,0.00019178,2]
[376456729,1753985440476,-460.0,0.00019178,2]
[376456730,1753985440485,-460.0,0.00019178,2]
[376456731,1753985440494,-460.0,0.00019178,2]
[376456733,1753985440504,-460.0,0.00019178,2]
[376456735,1753985440513,-460.0,0.00019178,2]
[376456737,1753985440523,-461.02659102,0.00019178,2]
[376456739,1753985440532,-424.46815538,0.00019178,2]
[376456741,1753985440541,-460.0,0.00019178,2]
[376456743,1753985440550,-463.28067882,0.00019178,2]
[376456745,1753985440560,-460.0,0.00019178,2]
[376456747,1753985440570,-489.65785052,0.00019178,2]
[376456749,1753985440580,-460.0,0.00019178,2]
[376456751,1753985440588,-460.0,0.00019178,2]
[376456753,1753985440598,-460.0,0.00019178,2]
[376456755,1753985440607,-460.0,0.00019178,2]
[376456757,1753985440616,-460.0,0.00019178,2]
[376456759,1753985440626,-460.0,0.00019178,2]